[Event "Titled Tuesday Blitz November 29 Early 2022"]
[White "Saravana, Krishnan P."]
[Black "Orzech, Dominik"]
[WhiteFideId "5018382"]
[BlackFideId "1115065"]
[WhiteElo "2155"]
[BlackElo "2272"]
[Result "1-0"]
[Round "08"]
[TimeControl "180+1"]
[Date "2022.11.30"]
[WhiteClock "0:00:49"]
[BlackClock "0:00:28"]

1. d4 {[%clk 0:03:00]}  Nf6 {[%clk 0:01:41]} 2. Nf3 {[%clk 0:02:57]}  c5 {[%clk 0:01:40]} 3. d5 {[%clk 0:02:56]}  e6 {[%clk 0:01:38]} 4. Nc3 {[%clk 0:02:54]}  exd5 {[%clk 0:01:16]} 5. Nxd5 {[%clk 0:02:52]}  Nxd5 {[%clk 0:01:17]} 6. Qxd5 {[%clk 0:02:52]}  Nc6 {[%clk 0:01:18]} 7. Bg5 {[%clk 0:02:51]}  Be7 {[%clk 0:01:19]} 8. e3 {[%clk 0:02:48]}  O-O {[%clk 0:01:20]} 9. Bd3 {[%clk 0:02:47]}  d6 {[%clk 0:01:19]} 10. O-O-O {[%clk 0:02:42]}  Be6 {[%clk 0:01:17]} 11. Qe4 {[%clk 0:02:42]}  g6 {[%clk 0:01:15]} 12. h4 {[%clk 0:02:42]}  d5 {[%clk 0:01:14]} 13. Qa4 {[%clk 0:02:35]}  a6 {[%clk 0:01:11]} 14. c4 {[%clk 0:02:35]}  Qc7 {[%clk 0:01:02]} 15. cxd5 {[%clk 0:02:13]}  b5 {[%clk 0:00:59]} 16. Qe4 {[%clk 0:01:48]}  Bf5 {[%clk 0:00:56]} 17. Qf4 {[%clk 0:01:30]}  Bd6 {[%clk 0:00:54]} 18. Bxf5 {[%clk 0:01:28]}  Bxf4 {[%clk 0:00:52]} 19. Bxf4 {[%clk 0:01:28]}  Qa5 {[%clk 0:00:51]} 20. dxc6 {[%clk 0:01:24]}  gxf5 {[%clk 0:00:50]} 21. Kb1 {[%clk 0:01:21]}  Rac8 {[%clk 0:00:48]} 22. c7 {[%clk 0:01:20]}  Rxc7 {[%clk 0:00:45]} 23. Bxc7 {[%clk 0:01:19]}  Qxc7 {[%clk 0:00:46]} 24. Rd5 {[%clk 0:01:19]}  c4 {[%clk 0:00:45]} 25. Rhd1 {[%clk 0:01:17]}  c3 {[%clk 0:00:44]} 26. Rc1 {[%clk 0:01:00]}  Qc4 {[%clk 0:00:41]} 27. Rd4 {[%clk 0:00:56]}  Qe2 {[%clk 0:00:37]} 28. Rxc3 {[%clk 0:00:50]}  Qxf2 {[%clk 0:00:30]} 29. Rd2 {[%clk 0:00:49]}  Qf1+ {[%clk 0:00:28]} 30. Rc1 {[%clk 0:00:49]} 1-0


[Site "https://www.chess.com"]

[Event "Titled Tuesday Blitz November 29 Early 2022"]
[White "Sargissyan, Sargis"]
[Black "Grabinsky, Vladimir"]
[WhiteFideId "13303210"]
[BlackFideId "14107074"]
[WhiteElo "2109"]
[BlackElo "2198"]
[Result "1-0"]
[Round "08"]
[TimeControl "180+1"]
[Date "2022.11.30"]
[WhiteClock "0:00:06"]
[BlackClock "0:00:01"]

1. e4 {[%clk 0:03:00]}  c5 {[%clk 0:02:58]} 2. Nf3 {[%clk 0:03:00]}  Nc6 {[%clk 0:02:57]} 3. d4 {[%clk 0:03:01]}  cxd4 {[%clk 0:02:57]} 4. Nxd4 {[%clk 0:03:02]}  e5 {[%clk 0:02:57]} 5. Nb5 {[%clk 0:03:02]}  d6 {[%clk 0:02:57]} 6. c4 {[%clk 0:02:59]}  Be7 {[%clk 0:02:56]} 7. N5c3 {[%clk 0:02:58]}  f5 {[%clk 0:02:55]} 8. Bd3 {[%clk 0:02:57]}  f4 {[%clk 0:02:54]} 9. Nd5 {[%clk 0:02:56]}  Nf6 {[%clk 0:02:51]} 10. Nbc3 {[%clk 0:02:55]}  O-O {[%clk 0:02:45]} 11. b4 {[%clk 0:02:34]}  Nd4 {[%clk 0:02:36]} 12. Bb2 {[%clk 0:02:35]}  Qe8 {[%clk 0:02:20]} 13. Nxf6+ {[%clk 0:02:32]}  Bxf6 {[%clk 0:02:05]} 14. Nd5 {[%clk 0:02:32]}  Qg6 {[%clk 0:02:04]} 15. Bxd4 {[%clk 0:02:12]}  Qxg2 {[%clk 0:01:55]} 16. Kd2 {[%clk 0:02:09]}  exd4 {[%clk 0:01:53]} 17. Qg1 {[%clk 0:02:00]}  f3 {[%clk 0:01:49]} 18. h4 {[%clk 0:01:56]}  Be6 {[%clk 0:01:33]} 19. Nf4 {[%clk 0:01:43]}  Bg5 {[%clk 0:01:23]} 20. hxg5 {[%clk 0:01:33]}  Rxf4 {[%clk 0:01:22]} 21. Rh2 {[%clk 0:01:21]}  Qxg1 {[%clk 0:01:11]} 22. Rxg1 {[%clk 0:01:22]}  Rc8 {[%clk 0:01:08]} 23. Rgh1 {[%clk 0:01:10]}  Bxc4 {[%clk 0:01:04]} 24. Rxh7 {[%clk 0:01:10]}  Kf7 {[%clk 0:00:44]} 25. Rh8 {[%clk 0:01:10]}  Rc7 {[%clk 0:00:36]} 26. Rd8 {[%clk 0:00:38]}  Bxd3 {[%clk 0:00:35]} 27. Kxd3 {[%clk 0:00:38]}  Rg4 {[%clk 0:00:18]} 28. Kxd4 {[%clk 0:00:35]}  Rxg5 {[%clk 0:00:18]} 29. Rxd6 {[%clk 0:00:33]}  Rg2 {[%clk 0:00:16]} 30. Ke3 {[%clk 0:00:24]}  Rc2 {[%clk 0:00:14]} 31. Kxf3 {[%clk 0:00:21]}  Rcxf2+ {[%clk 0:00:12]} 32. Ke3 {[%clk 0:00:21]}  Re2+ {[%clk 0:00:12]} 33. Kf4 {[%clk 0:00:20]}  Ref2+ {[%clk 0:00:09]} 34. Ke3 {[%clk 0:00:16]}  Re2+ {[%clk 0:00:09]} 35. Kd4 {[%clk 0:00:09]}  Rd2+ {[%clk 0:00:08]} 36. Kc5 {[%clk 0:00:07]}  b6+ {[%clk 0:00:02]} 37. Kc6 {[%clk 0:00:07]}  Rxd6+ {[%clk 0:00:02]} 38. Kxd6 {[%clk 0:00:08]}  Rxa2 {[%clk 0:00:02]} 39. Rf1+ {[%clk 0:00:07]}  Kg6 {[%clk 0:00:02]} 40. e5 {[%clk 0:00:07]}  Rd2+ {[%clk 0:00:01]} 41. Ke7 {[%clk 0:00:06]} 1-0


[Site "https://www.chess.com"]

[Event "Titled Tuesday Blitz November 29 Early 2022"]
[White "Schut, Han"]
[Black "Sengupta, Deep"]
[WhiteFideId "1005561"]
[BlackFideId "5008352"]
[WhiteElo "2024"]
[BlackElo "2397"]
[Result "0-1"]
[Round "08"]
[TimeControl "180+1"]
[Date "2022.11.30"]
[WhiteClock "0:00:15"]
[BlackClock "0:00:29"]

1. e4 {[%clk 0:03:00]}  g6 {[%clk 0:02:57]} 2. d4 {[%clk 0:03:00]}  Bg7 {[%clk 0:02:58]} 3. Nc3 {[%clk 0:03:01]}  c6 {[%clk 0:02:58]} 4. f4 {[%clk 0:03:01]}  d5 {[%clk 0:02:59]} 5. Nf3 {[%clk 0:03:01]}  Bg4 {[%clk 0:02:56]} 6. e5 {[%clk 0:02:57]}  e6 {[%clk 0:02:51]} 7. h3 {[%clk 0:02:52]}  Bxf3 {[%clk 0:02:50]} 8. Qxf3 {[%clk 0:02:53]}  Ne7 {[%clk 0:02:45]} 9. Bd3 {[%clk 0:02:45]}  Nd7 {[%clk 0:02:44]} 10. O-O {[%clk 0:02:36]}  h5 {[%clk 0:02:43]} 11. g4 {[%clk 0:02:31]}  hxg4 {[%clk 0:02:39]} 12. hxg4 {[%clk 0:02:32]}  Qb6 {[%clk 0:02:39]} 13. Ne2 {[%clk 0:02:24]}  O-O-O {[%clk 0:02:37]} 14. Kg2 {[%clk 0:02:05]}  Rh4 {[%clk 0:02:04]} 15. Rh1 {[%clk 0:02:00]}  Rdh8 {[%clk 0:02:03]} 16. Rxh4 {[%clk 0:01:50]}  Rxh4 {[%clk 0:02:04]} 17. Qf2 {[%clk 0:01:38]}  Rxg4+ {[%clk 0:01:50]} 18. Kf3 {[%clk 0:01:39]}  f5 {[%clk 0:01:50]} 19. exf6 {[%clk 0:01:38]}  Nxf6 {[%clk 0:01:50]} 20. Bd2 {[%clk 0:01:19]}  Nf5 {[%clk 0:01:49]} 21. c3 {[%clk 0:01:02]}  Ne4 {[%clk 0:01:45]} 22. Bxe4 {[%clk 0:00:55]}  dxe4+ {[%clk 0:01:45]} 23. Kxg4 {[%clk 0:00:52]}  Qxb2 {[%clk 0:01:38]} 24. Rd1 {[%clk 0:00:48]}  Qc2 {[%clk 0:01:26]} 25. Qf1 {[%clk 0:00:23]}  Qd3 {[%clk 0:00:31]} 26. Nc1 {[%clk 0:00:15]}  Qg3# {[%clk 0:00:29]} 0-1


[Site "https://www.chess.com"]

[Event "Titled Tuesday Blitz November 29 Early 2022"]
[White "Sharifov, Mekhriddin"]
[Black "Mikhalsky, Vladimir"]
[WhiteFideId "14701545"]
[BlackFideId "14144352"]
[WhiteElo "2109"]
[BlackElo "2271"]
[Result "1-0"]
[Round "08"]
[TimeControl "180+1"]
[Date "2022.11.30"]
[WhiteClock "0:02:35"]
[BlackClock "0:01:35"]

1. e4 {[%clk 0:03:00]}  c5 {[%clk 0:02:45]} 2. Nf3 {[%clk 0:03:00]}  Nc6 {[%clk 0:02:44]} 3. d4 {[%clk 0:03:00]}  cxd4 {[%clk 0:02:42]} 4. Nxd4 {[%clk 0:03:01]}  Nf6 {[%clk 0:02:42]} 5. Nc3 {[%clk 0:03:01]}  e5 {[%clk 0:02:43]} 6. Ndb5 {[%clk 0:03:01]}  d6 {[%clk 0:02:43]} 7. Bg5 {[%clk 0:03:02]}  a6 {[%clk 0:02:44]} 8. Na3 {[%clk 0:03:01]}  b5 {[%clk 0:02:44]} 9. Nd5 {[%clk 0:03:02]}  Be7 {[%clk 0:02:42]} 10. Bxf6 {[%clk 0:03:02]}  Bxf6 {[%clk 0:02:43]} 11. c4 {[%clk 0:03:03]}  b4 {[%clk 0:02:40]} 12. Nc2 {[%clk 0:03:03]}  Rb8 {[%clk 0:02:33]} 13. b3 {[%clk 0:03:01]}  Bg5 {[%clk 0:02:31]} 14. g3 {[%clk 0:03:01]}  O-O {[%clk 0:02:30]} 15. Bg2 {[%clk 0:03:01]}  Qa5 {[%clk 0:02:27]} 16. O-O {[%clk 0:03:00]}  Qc5 {[%clk 0:02:25]} 17. Kh1 {[%clk 0:02:59]}  f5 {[%clk 0:02:25]} 18. Qd3 {[%clk 0:02:52]}  Be6 {[%clk 0:02:18]} 19. f4 {[%clk 0:02:48]}  Bf6 {[%clk 0:01:56]} 20. exf5 {[%clk 0:02:40]}  Bxd5 {[%clk 0:01:40]} 21. Qxd5+ {[%clk 0:02:39]}  Qxd5 {[%clk 0:01:36]} 22. Bxd5+ {[%clk 0:02:39]}  Kh8 {[%clk 0:01:36]} 23. Bxc6 {[%clk 0:02:38]}  exf4 {[%clk 0:01:36]} 24. Rad1 {[%clk 0:02:34]}  fxg3 {[%clk 0:01:36]} 25. hxg3 {[%clk 0:02:35]}  Be5 {[%clk 0:01:35]} 26. Kg2 {[%clk 0:02:35]} 1-0


[Site "https://www.chess.com"]

[Event "Titled Tuesday Blitz November 29 Early 2022"]
[White "Shuvalov, Evgenij"]
[Black "Girel, Joseph"]
[WhiteFideId "4187237"]
[BlackFideId "36033561"]
[WhiteElo "2049"]
[BlackElo "2281"]
[Result "0-1"]
[Round "08"]
[TimeControl "180+1"]
[Date "2022.11.30"]
[WhiteClock "0:00:18"]
[BlackClock "0:01:02"]

1. d4 {[%clk 0:02:54]}  g6 {[%clk 0:02:55]} 2. c4 {[%clk 0:02:54]}  Bg7 {[%clk 0:02:53]} 3. e4 {[%clk 0:02:54]}  c5 {[%clk 0:02:50]} 4. d5 {[%clk 0:02:53]}  d6 {[%clk 0:02:50]} 5. Nf3 {[%clk 0:02:52]}  Bg4 {[%clk 0:02:48]} 6. Be2 {[%clk 0:02:53]}  Nd7 {[%clk 0:02:46]} 7. O-O {[%clk 0:02:52]}  a6 {[%clk 0:02:46]} 8. a4 {[%clk 0:02:51]}  Ngf6 {[%clk 0:02:44]} 9. Nc3 {[%clk 0:02:51]}  Bxf3 {[%clk 0:02:41]} 10. Bxf3 {[%clk 0:02:51]}  O-O {[%clk 0:02:41]} 11. Bf4 {[%clk 0:02:45]}  Qb6 {[%clk 0:02:38]} 12. Qc2 {[%clk 0:02:41]}  Qb4 {[%clk 0:02:18]} 13. Be2 {[%clk 0:02:39]}  Ne8 {[%clk 0:02:11]} 14. a5 {[%clk 0:02:29]}  b5 {[%clk 0:02:02]} 15. cxb5 {[%clk 0:02:19]}  axb5 {[%clk 0:02:01]} 16. Bd2 {[%clk 0:01:43]}  Rxa5 {[%clk 0:01:49]} 17. Nxb5 {[%clk 0:01:35]}  Rxb5 {[%clk 0:01:49]} 18. Bxb4 {[%clk 0:01:35]}  Rxb4 {[%clk 0:01:50]} 19. Ra7 {[%clk 0:01:33]}  Rxb2 {[%clk 0:01:48]} 20. Qd1 {[%clk 0:01:12]}  Nef6 {[%clk 0:01:44]} 21. Bf3 {[%clk 0:01:09]}  c4 {[%clk 0:01:37]} 22. Qa4 {[%clk 0:01:06]}  Nb6 {[%clk 0:01:29]} 23. Qa3 {[%clk 0:00:57]}  Nfd7 {[%clk 0:01:28]} 24. Rc1 {[%clk 0:00:51]}  Nc5 {[%clk 0:01:24]} 25. h3 {[%clk 0:00:45]}  Bd4 {[%clk 0:01:21]} 26. Rxe7 {[%clk 0:00:39]}  Rxf2 {[%clk 0:01:17]} 27. Kh1 {[%clk 0:00:39]}  Nd3 {[%clk 0:01:12]} 28. Rd1 {[%clk 0:00:29]}  Rxf3 {[%clk 0:01:06]} 29. gxf3 {[%clk 0:00:30]}  Nf2+ {[%clk 0:01:07]} 30. Kg2 {[%clk 0:00:30]}  Nxd1 {[%clk 0:01:08]} 31. Qxd6 {[%clk 0:00:26]}  c3 {[%clk 0:01:04]} 32. Rc7 {[%clk 0:00:24]}  c2 {[%clk 0:01:03]} 33. Kg3 {[%clk 0:00:20]}  Nc3 {[%clk 0:01:00]} 34. Qa3 {[%clk 0:00:17]}  c1=Q {[%clk 0:01:00]} 35. Qxc1 {[%clk 0:00:16]}  Ne2+ {[%clk 0:01:00]} 36. Kg2 {[%clk 0:00:16]}  Nxc1 {[%clk 0:01:01]} 37. Rxc1 {[%clk 0:00:16]}  Rd8 {[%clk 0:01:01]} 38. Rc6 {[%clk 0:00:16]}  Nxd5 {[%clk 0:01:00]} 39. exd5 {[%clk 0:00:15]}  Rxd5 {[%clk 0:01:00]} 40. Rc2 {[%clk 0:00:16]}  Kg7 {[%clk 0:01:00]} 41. Rd2 {[%clk 0:00:17]}  Rd6 {[%clk 0:01:00]} 42. Rd3 {[%clk 0:00:15]}  Be5 {[%clk 0:01:00]} 43. Rxd6 {[%clk 0:00:15]}  Bxd6 {[%clk 0:01:00]} 44. Kf2 {[%clk 0:00:16]}  Kf6 {[%clk 0:01:00]} 45. Kg2 {[%clk 0:00:17]}  Kg5 {[%clk 0:01:01]} 46. Kf2 {[%clk 0:00:18]}  Kh4 {[%clk 0:01:02]} 47. Kg2 {[%clk 0:00:18]}  Bf4 {[%clk 0:01:02]} 0-1


[Site "https://www.chess.com"]

[Event "Titled Tuesday Blitz November 29 Early 2022"]
[White "Sovetbekova, Nurai"]
[Black "Donskov, Anatoly"]
[WhiteFideId "13801910"]
[BlackFideId "24143413"]
[WhiteElo "1925"]
[BlackElo "2219"]
[Result "1-0"]
[Round "08"]
[TimeControl "180+1"]
[Date "2022.11.30"]
[WhiteClock "0:00:10"]
[BlackClock "0:00:01"]

1. d4 {[%clk 0:03:00]}  d5 {[%clk 0:03:00]} 2. c4 {[%clk 0:02:59]}  dxc4 {[%clk 0:03:00]} 3. e4 {[%clk 0:02:59]}  b5 {[%clk 0:02:59]} 4. a4 {[%clk 0:02:55]}  c6 {[%clk 0:02:55]} 5. b3 {[%clk 0:02:48]}  e5 {[%clk 0:02:33]} 6. axb5 {[%clk 0:02:35]}  cxb5 {[%clk 0:02:30]} 7. bxc4 {[%clk 0:02:35]}  b4 {[%clk 0:01:40]} 8. d5 {[%clk 0:02:26]}  Nf6 {[%clk 0:01:40]} 9. Qc2 {[%clk 0:02:15]}  Nbd7 {[%clk 0:01:35]} 10. Nd2 {[%clk 0:02:05]}  Bd6 {[%clk 0:01:27]} 11. Nb3 {[%clk 0:02:02]}  Qc7 {[%clk 0:01:26]} 12. Nf3 {[%clk 0:01:51]}  a5 {[%clk 0:01:23]} 13. Be3 {[%clk 0:01:49]}  a4 {[%clk 0:01:16]} 14. Nbd2 {[%clk 0:01:46]}  b3 {[%clk 0:01:06]} 15. Qb2 {[%clk 0:01:40]}  Bb7 {[%clk 0:00:51]} 16. c5 {[%clk 0:01:27]}  Bxc5 {[%clk 0:00:40]} 17. Bxc5 {[%clk 0:01:24]}  Qxc5 {[%clk 0:00:41]} 18. Nxe5 {[%clk 0:01:17]}  O-O {[%clk 0:00:37]} 19. Nd3 {[%clk 0:01:13]}  Qe7 {[%clk 0:00:20]} 20. Be2 {[%clk 0:00:54]}  Nxe4 {[%clk 0:00:19]} 21. Nc4 {[%clk 0:00:47]}  Bxd5 {[%clk 0:00:15]} 22. Ne3 {[%clk 0:00:48]}  Bb7 {[%clk 0:00:13]} 23. O-O {[%clk 0:00:43]}  Nec5 {[%clk 0:00:13]} 24. Nf4 {[%clk 0:00:36]}  Rfc8 {[%clk 0:00:12]} 25. Rfc1 {[%clk 0:00:33]}  Qe5 {[%clk 0:00:11]} 26. Qd2 {[%clk 0:00:28]}  a3 {[%clk 0:00:08]} 27. Nc4 {[%clk 0:00:16]}  Qg5 {[%clk 0:00:03]} 28. Nxa3 {[%clk 0:00:15]}  b2 {[%clk 0:00:02]} 29. Qxb2 {[%clk 0:00:14]}  Qxf4 {[%clk 0:00:02]} 30. Nc4 {[%clk 0:00:11]}  Qg5 {[%clk 0:00:02]} 31. f3 {[%clk 0:00:11]}  h5 {[%clk 0:00:02]} 32. Rxa8 {[%clk 0:00:11]}  Bxa8 {[%clk 0:00:01]} 33. Nb6 {[%clk 0:00:10]}  Qf5 {[%clk 0:00:01]} 34. Nxd7 {[%clk 0:00:10]} 1-0


[Site "https://www.chess.com"]

[Event "Titled Tuesday Blitz November 29 Early 2022"]
[White "Tarlabasi, Emirhan"]
[Black "Vlassov, Nikolai"]
[WhiteFideId "6350275"]
[BlackFideId "4103360"]
[WhiteElo "2200"]
[BlackElo "2324"]
[Result "1-0"]
[Round "08"]
[TimeControl "180+1"]
[Date "2022.11.30"]
[WhiteClock "0:00:52"]
[BlackClock "0:00:06"]

1. Nf3 {[%clk 0:02:59]}  c5 {[%clk 0:02:59]} 2. c4 {[%clk 0:03:00]}  g6 {[%clk 0:02:58]} 3. Nc3 {[%clk 0:02:59]}  Bg7 {[%clk 0:02:59]} 4. b3 {[%clk 0:02:59]}  d5 {[%clk 0:02:54]} 5. cxd5 {[%clk 0:02:58]}  Nf6 {[%clk 0:02:54]} 6. Bb2 {[%clk 0:02:54]}  Nxd5 {[%clk 0:02:54]} 7. g3 {[%clk 0:02:55]}  O-O {[%clk 0:02:53]} 8. Bg2 {[%clk 0:02:55]}  Nc6 {[%clk 0:02:53]} 9. O-O {[%clk 0:02:55]}  b6 {[%clk 0:02:45]} 10. Qc1 {[%clk 0:02:52]}  Bb7 {[%clk 0:02:42]} 11. Nxd5 {[%clk 0:02:52]}  Bxb2 {[%clk 0:02:34]} 12. Nxe7+ {[%clk 0:02:51]}  Qxe7 {[%clk 0:02:33]} 13. Qxb2 {[%clk 0:02:51]}  Qxe2 {[%clk 0:02:28]} 14. Rfe1 {[%clk 0:02:51]}  Qd3 {[%clk 0:02:20]} 15. Re3 {[%clk 0:02:50]}  Qd6 {[%clk 0:02:19]} 16. Rd1 {[%clk 0:02:15]}  Rad8 {[%clk 0:02:16]} 17. d4 {[%clk 0:02:05]}  cxd4 {[%clk 0:01:56]} 18. Red3 {[%clk 0:01:48]}  Ba6 {[%clk 0:01:39]} 19. Nxd4 {[%clk 0:01:38]}  Bxd3 {[%clk 0:01:15]} 20. Nxc6 {[%clk 0:01:37]}  Rde8 {[%clk 0:01:15]} 21. Qc3 {[%clk 0:01:33]}  Re2 {[%clk 0:00:53]} 22. Rxd3 {[%clk 0:01:16]}  Qa3 {[%clk 0:00:47]} 23. Rd1 {[%clk 0:01:09]}  Qxa2 {[%clk 0:00:36]} 24. Bf3 {[%clk 0:01:09]}  Re6 {[%clk 0:00:29]} 25. Ra1 {[%clk 0:01:06]}  Rxc6 {[%clk 0:00:14]} 26. Bxc6 {[%clk 0:01:07]}  Qe2 {[%clk 0:00:13]} 27. Rxa7 {[%clk 0:01:04]}  Rc8 {[%clk 0:00:11]} 28. Qf6 {[%clk 0:00:55]}  Qd1+ {[%clk 0:00:06]} 29. Kg2 {[%clk 0:00:55]}  Qxb3 {[%clk 0:00:06]} 30. Rd7 {[%clk 0:00:52]} 1-0


[Site "https://www.chess.com"]

[Event "Titled Tuesday Blitz November 29 Early 2022"]
[White "Tasev, Dejan"]
[Black "Stijve, Theo"]
[WhiteFideId "936618"]
[BlackFideId "1331132"]
[WhiteElo "2256"]
[BlackElo "2256"]
[Result "1-0"]
[Round "08"]
[TimeControl "180+1"]
[Date "2022.11.30"]
[WhiteClock "0:00:23"]
[BlackClock "0:00:04"]

1. e4 {[%clk 0:03:00]}  c6 {[%clk 0:02:58]} 2. d4 {[%clk 0:02:58]}  d5 {[%clk 0:02:58]} 3. Nc3 {[%clk 0:02:59]}  dxe4 {[%clk 0:02:58]} 4. Nxe4 {[%clk 0:02:59]}  Nf6 {[%clk 0:02:59]} 5. Nxf6+ {[%clk 0:02:59]}  exf6 {[%clk 0:02:59]} 6. c3 {[%clk 0:03:00]}  Bd6 {[%clk 0:02:59]} 7. Bd3 {[%clk 0:03:00]}  O-O {[%clk 0:02:58]} 8. Qc2 {[%clk 0:03:00]}  Re8+ {[%clk 0:02:57]} 9. Ne2 {[%clk 0:03:00]}  h5 {[%clk 0:02:48]} 10. h3 {[%clk 0:03:00]}  h4 {[%clk 0:02:40]} 11. O-O {[%clk 0:02:51]}  Na6 {[%clk 0:02:33]} 12. Bd2 {[%clk 0:02:49]}  Nc7 {[%clk 0:02:33]} 13. Rae1 {[%clk 0:02:49]}  Nd5 {[%clk 0:02:25]} 14. a3 {[%clk 0:02:44]}  b5 {[%clk 0:02:06]} 15. Qc1 {[%clk 0:02:06]}  Qc7 {[%clk 0:01:37]} 16. f4 {[%clk 0:02:02]}  a5 {[%clk 0:01:24]} 17. b3 {[%clk 0:01:49]}  Ba6 {[%clk 0:01:00]} 18. c4 {[%clk 0:01:46]}  bxc4 {[%clk 0:01:00]} 19. bxc4 {[%clk 0:01:46]}  c5 {[%clk 0:00:57]} 20. Bb1 {[%clk 0:01:33]}  Nb6 {[%clk 0:00:51]} 21. Qc2 {[%clk 0:01:23]}  g6 {[%clk 0:00:46]} 22. Bxa5 {[%clk 0:01:21]}  cxd4 {[%clk 0:00:40]} 23. Nxd4 {[%clk 0:00:56]}  Bc5 {[%clk 0:00:36]} 24. Rxe8+ {[%clk 0:00:49]}  Rxe8 {[%clk 0:00:36]} 25. Bc3 {[%clk 0:00:48]}  Nxc4 {[%clk 0:00:34]} 26. Ba2 {[%clk 0:00:45]}  f5 {[%clk 0:00:25]} 27. Qa4 {[%clk 0:00:42]}  Qb6 {[%clk 0:00:18]} 28. Qxe8+ {[%clk 0:00:41]}  Kg7 {[%clk 0:00:18]} 29. Rd1 {[%clk 0:00:36]}  Nxa3 {[%clk 0:00:09]} 30. Qxf7+ {[%clk 0:00:32]}  Kh6 {[%clk 0:00:09]} 31. Kh2 {[%clk 0:00:25]}  Nb5 {[%clk 0:00:09]} 32. Nxb5 {[%clk 0:00:24]}  Bxb5 {[%clk 0:00:09]} 33. Bf6 {[%clk 0:00:23]}  Qb8 {[%clk 0:00:04]} 34. Bg5+ {[%clk 0:00:23]}  Kh5 {[%clk 0:00:04]} 35. Qh7# {[%clk 0:00:23]} 1-0


[Site "https://www.chess.com"]

[Event "Titled Tuesday Blitz November 29 Early 2022"]
[White "Vysochin, Spartak"]
[Black "Tarnowska, Aleksandra"]
[WhiteFideId "14103516"]
[BlackFideId "1180967"]
[WhiteElo "2412"]
[BlackElo "1776"]
[Result "1/2-1/2"]
[Round "08"]
[TimeControl "180+1"]
[Date "2022.11.30"]
[WhiteClock "0:00:07"]
[BlackClock "0:00:06"]

1. d4 {[%clk 0:03:00]}  d5 {[%clk 0:03:00]} 2. Nf3 {[%clk 0:03:00]}  Nf6 {[%clk 0:02:59]} 3. g3 {[%clk 0:02:59]}  Bf5 {[%clk 0:02:58]} 4. Bg2 {[%clk 0:02:59]}  c6 {[%clk 0:02:58]} 5. O-O {[%clk 0:03:00]}  Nbd7 {[%clk 0:02:56]} 6. Bf4 {[%clk 0:02:59]}  e6 {[%clk 0:02:55]} 7. Nbd2 {[%clk 0:02:58]}  Be7 {[%clk 0:02:52]} 8. c4 {[%clk 0:02:58]}  O-O {[%clk 0:02:28]} 9. a3 {[%clk 0:02:54]}  h6 {[%clk 0:02:26]} 10. Rc1 {[%clk 0:02:51]}  dxc4 {[%clk 0:02:01]} 11. Nxc4 {[%clk 0:02:49]}  Nb6 {[%clk 0:02:01]} 12. Nd6 {[%clk 0:02:44]}  Bxd6 {[%clk 0:01:56]} 13. Bxd6 {[%clk 0:02:32]}  Qxd6 {[%clk 0:01:56]} 14. Nh4 {[%clk 0:02:21]}  Bh7 {[%clk 0:01:54]} 15. Re1 {[%clk 0:02:18]}  Rad8 {[%clk 0:01:49]} 16. e3 {[%clk 0:02:16]}  Rfe8 {[%clk 0:01:32]} 17. Qb3 {[%clk 0:01:56]}  e5 {[%clk 0:01:27]} 18. dxe5 {[%clk 0:01:48]}  Qxe5 {[%clk 0:01:26]} 19. a4 {[%clk 0:01:42]}  Qe6 {[%clk 0:01:23]} 20. Qb4 {[%clk 0:01:37]}  Nfd5 {[%clk 0:01:11]} 21. Bxd5 {[%clk 0:01:32]}  Rxd5 {[%clk 0:01:10]} 22. a5 {[%clk 0:01:30]}  Rb5 {[%clk 0:01:10]} 23. Qa3 {[%clk 0:01:24]}  Nc4 {[%clk 0:00:58]} 24. Qc3 {[%clk 0:01:01]}  Nxa5 {[%clk 0:00:51]} 25. Nf3 {[%clk 0:00:56]}  Nb3 {[%clk 0:00:43]} 26. Nd4 {[%clk 0:00:46]}  Nxd4 {[%clk 0:00:37]} 27. exd4 {[%clk 0:00:44]}  Qd7 {[%clk 0:00:29]} 28. Qa3 {[%clk 0:00:27]}  Rxe1+ {[%clk 0:00:27]} 29. Rxe1 {[%clk 0:00:25]}  a6 {[%clk 0:00:23]} 30. Re7 {[%clk 0:00:19]}  Qd8 {[%clk 0:00:21]} 31. Qe3 {[%clk 0:00:16]}  Qxe7 {[%clk 0:00:01]} 32. Qxe7 {[%clk 0:00:15]}  Bg6 {[%clk 0:00:01]} 33. Qe8+ {[%clk 0:00:11]}  Kh7 {[%clk 0:00:01]} 34. Qd7 {[%clk 0:00:09]}  Rxb2 {[%clk 0:00:01]} 35. h4 {[%clk 0:00:07]}  Be4 {[%clk 0:00:01]} 36. g4 {[%clk 0:00:03]}  Rb1+ {[%clk 0:00:02]} 37. Kh2 {[%clk 0:00:03]}  Rh1+ {[%clk 0:00:02]} 38. Kg3 {[%clk 0:00:04]}  Bg6 {[%clk 0:00:03]} 39. h5 {[%clk 0:00:04]}  Bc2 {[%clk 0:00:03]} 40. Qxb7 {[%clk 0:00:04]}  Rd1 {[%clk 0:00:03]} 41. Qxc6 {[%clk 0:00:04]}  Rd3+ {[%clk 0:00:03]} 42. Kf4 {[%clk 0:00:03]}  Bb1 {[%clk 0:00:04]} 43. Qxa6 {[%clk 0:00:03]}  Rxd4+ {[%clk 0:00:04]} 44. Ke3 {[%clk 0:00:03]}  Rb4 {[%clk 0:00:04]} 45. Qa1 {[%clk 0:00:01]}  Rb3+ {[%clk 0:00:04]} 46. Ke2 {[%clk 0:00:01]}  Be4 {[%clk 0:00:05]} 47. Qc1 {[%clk 0:00:01]}  Rb4 {[%clk 0:00:04]} 48. Qd2 {[%clk 0:00:01]}  Rc4 {[%clk 0:00:04]} 49. Qe3 {[%clk 0:00:01]}  Rc2+ {[%clk 0:00:04]} 50. Kf1 {[%clk 0:00:01]}  Rc4 {[%clk 0:00:03]} 51. f3 {[%clk 0:00:01]}  Rd4 {[%clk 0:00:03]} 52. fxe4 {[%clk 0:00:01]}  Rd6 {[%clk 0:00:02]} 53. Qf4 {[%clk 0:00:01]}  Rf6 {[%clk 0:00:03]} 54. Qxf6 {[%clk 0:00:01]}  gxf6 {[%clk 0:00:04]} 55. Kf2 {[%clk 0:00:01]}  Kg7 {[%clk 0:00:03]} 56. Kf3 {[%clk 0:00:02]}  Kf8 {[%clk 0:00:04]} 57. Kf4 {[%clk 0:00:03]}  Ke7 {[%clk 0:00:04]} 58. Kf5 {[%clk 0:00:03]}  Kf8 {[%clk 0:00:02]} 59. Kxf6 {[%clk 0:00:03]}  Kg8 {[%clk 0:00:02]} 60. e5 {[%clk 0:00:03]}  Kf8 {[%clk 0:00:02]} 61. e6 {[%clk 0:00:03]}  fxe6 {[%clk 0:00:03]} 62. Kxe6 {[%clk 0:00:04]}  Kg7 {[%clk 0:00:03]} 63. Kf5 {[%clk 0:00:05]}  Kf7 {[%clk 0:00:03]} 64. g5 {[%clk 0:00:04]}  hxg5 {[%clk 0:00:03]} 65. Kxg5 {[%clk 0:00:05]}  Kg7 {[%clk 0:00:04]} 66. h6+ {[%clk 0:00:06]}  Kh7 {[%clk 0:00:04]} 67. Kh5 {[%clk 0:00:06]}  Kh8 {[%clk 0:00:05]} 68. Kg5 {[%clk 0:00:06]}  Kg8 {[%clk 0:00:06]} 69. Kg6 {[%clk 0:00:06]}  Kh8 {[%clk 0:00:06]} 70. h7 {[%clk 0:00:07]} 1/2-1/2


[Site "https://www.chess.com"]